fUST/lending_fUST_20250625
["ID","MTS","AMOUNT","RATE_DAILY","PERIOD"]
[367566119,1750859451820,-852.82,0.00017962,2]
[367566120,1750859451829,-460.0,0.00017962,2]
[367566121,1750859451839,-460.0,0.00017962,2]
[367566122,1750859451847,-151.0,0.00017963,2]
[367566123,1750859451857,-151.0,0.00017963,2]
[367566124,1750859451866,-151.0,0.00017963,2]
[367566125,1750859451875,-151.0,0.00017963,2]
[367566126,1750859451884,-460.0,0.00017963,2]
[367566127,1750859451894,-460.0,0.00017963,2]
[367566128,1750859451903,-151.0,0.00017964,2]
[367566129,1750859451912,-354.98193205,0.00017964,2]
[367566130,1750859451921,-460.0,0.00017964,2]
[367566131,1750859451930,-151.0,0.00017965,2]
[367566132,1750859451940,-151.0,0.00017965,2]
[367566133,1750859451949,-568.0,0.00017975,2]
[367566134,1750859451958,-1019.76312072,0.00017979,2]
[367566135,1750859451969,-224.68595389,0.00017979,2]
[367566136,1750859451978,-192.0812288,0.00017979,2]
[367566137,1750859451987,-1000.0,0.00017979,2]
[367566138,1750859451996,-1000.0,0.00017979,2]
[367566139,1750859452005,-1000.0,0.00017979,2]
[367566140,1750859452015,-151.0,0.00018,2]
[367566141,1750859452024,-1000.0,0.00018008,2]
[367566142,1750859452033,-614.18597854,0.00018008,2]
[367566143,1750859452042,-1797.83653423,0.00018021,2]
[367566144,1750859452051,-854.0,0.00018028,2]
[367566145,1750859452060,-854.0,0.00018059,2]
[367566146,1750859452070,-500.0,0.0001807,2]
[367566147,1750859452078,-1000.0,0.0001807,2]
[367566148,1750859452088,-379.00249616,0.0001807,2]
[367566149,1750859452097,-501.32449287,0.0001807,2]
[367566150,1750859452106,-5000.0,0.00018076,2]
[367566151,1750859452115,-242.522726,0.00018076,2]
[367566152,1750859452124,-151.0,0.00018076,2]
[367566153,1750859452133,-151.0,0.00018076,2]
[367566154,1750859452142,-1500.0,0.00018082,7]
[367566155,1750859452151,-1500.0,0.00018082,7]
[367566156,1750859452161,-1500.0,0.00018082,7]
[367566157,1750859452170,-1500.0,0.00018082,7]
[367566158,1750859452180,-1500.0,0.00018082,7]
[367566159,1750859452190,-1500.0,0.00018082,7]
[367566160,1750859452199,-1500.0,0.00018082,7]
[367566161,1750859452208,-1500.0,0.00018082,7]
[367566162,1750859452219,-1500.0,0.00018082,7]
[367566163,1750859452228,-1500.0,0.00018082,7]
[367566164,1750859452238,-1500.0,0.00018082,7]
[367566165,1750859452247,-1500.0,0.00018082,7]
[367566166,1750859452256,-1500.0,0.00018082,7]
[367566167,1750859452266,-1500.0,0.00018082,7]
[367566168,1750859452275,-1500.0,0.00018082,7]
[367566169,1750859452284,-1500.0,0.00018082,7]
[367566170,1750859452294,-1500.0,0.00018082,7]
[367566171,1750859452303,-1500.0,0.00018082,7]
[367566172,1750859452312,-1500.0,0.00018082,7]
[367566173,1750859452322,-1500.0,0.00018082,7]
[367566174,1750859452331,-1500.0,0.00018082,7]
[367566175,1750859452340,-1500.0,0.00018082,7]
[367566176,1750859452350,-1500.0,0.00018082,7]
[367566177,1750859452359,-1500.0,0.00018082,7]
[367566178,1750859452368,-1500.0,0.00018082,7]
[367566179,1750859452378,-198.835005,0.00018082,7]
[367566180,1750859452387,-846.80634355,0.0001809,7]
[367566181,1750859452397,-524.21181985,0.0001809,7]
[367566182,1750859452406,-12558.06783089,0.0001809,7]
[367566183,1750859452415,-213.69531788,0.0001809,7]
[367566184,1750859452425,-854.0,0.00018091,2]
[367566185,1750859452434,-420.0,0.00018091,2]
[367566186,1750859452444,-500.0,0.00018095,2]
[367566187,1750859452453,-151.0,0.000181,2]
[367566188,1750859452463,-1802.537609,0.00018103,2]
[367566189,1750859452473,-6690.92572186,0.00018107,2]
[367566190,1750859452482,-1000.0,0.00018107,2]
[367566191,1750859452491,-1000.0,0.00018107,2]
[367566192,1750859452501,-500.0,0.00018107,2]
[367566193,1750859452510,-588.49752767,0.0001811,2]
[367566194,1750859452519,-1000.0,0.0001811,2]
[367566195,1750859452529,-1000.0,0.0001811,2]
[367566196,1750859452538,-854.0,0.00018113,2]
[367566197,1750859452548,-366.0085437,0.00018147,2]
[367566198,1750859452558,-366.0085437,0.00018147,2]
[367566199,1750859452568,-642.207,0.00018152,2]
[367566200,1750859452577,-500.0,0.00018154,2]
[367566201,1750859452587,-568.0,0.00018162,2]
[367566202,1750859452597,-151.0,0.00018172,2]
[367566203,1750859452607,-921.341914,0.00018172,2]
[367566204,1750859452617,-921.341914,0.00018172,2]
[367566205,1750859452626,-195.997592,0.00018173,2]
[367566206,1750859452753,-162.0,0.000182,2]
[367566207,1750859452767,-460.0,0.00018201,2]
[367566208,1750859452777,-460.0,0.00018201,2]
[367566209,1750859452786,-658.25,0.00018201,2]
[367566210,1750859452796,-2157.48,0.00018201,2]
[367566211,1750859452806,-460.0,0.00018201,2]
[367566212,1750859452815,-1596.87,0.00018201,2]
[367566213,1750859452825,-2446.59,0.00018201,2]
[367566214,1750859452834,-998.45,0.00018201,2]
[367566215,1750859452843,-460.0,0.00018201,2]
[367566216,1750859452853,-477.9,0.00018201,2]
[367566217,1750859452862,-1724.12,0.00018201,2]
[367566218,1750859452872,-473.38,0.00018201,2]
[367566219,1750859452881,-401.26,0.00018201,2]
[367566220,1750859452890,-1709.54,0.00018201,2]
[367566221,1750859452900,-514.24,0.00018201,2]
[367566222,1750859452909,-460.0,0.00018201,2]
[367566223,1750859452918,-769.26,0.00018201,2]
[367566224,1750859452927,-460.0,0.00018201,2]
[367566225,1750859452937,-2314.7,0.00018201,2]
[367566226,1750859452946,-214.99201422,0.00018203,2]
[367566227,1750859452955,-151.0,0.00018203,2]
[367566228,1750859452966,-460.0,0.00018203,2]
[367566229,1750859452976,-460.0,0.00018203,2]
[367566230,1750859452986,-460.0,0.00018203,2]
[367566231,1750859452995,-6408.02,0.00018203,2]
[367566232,1750859453005,-474.1,0.00018203,2]
[367566233,1750859453024,-846.37,0.00018203,2]
[367566234,1750859453033,-460.0,0.00018203,2]
[367566235,1750859453042,-732.36,0.00018203,2]
[367566236,1750859453052,-460.0,0.00018203,2]
[367566237,1750859453061,-460.0,0.00018203,2]
[367566238,1750859453070,-1037.67,0.00018203,2]
[367566239,1750859453080,-630.66,0.00018203,2]
[367566240,1750859453089,-883.63,0.00018203,2]
[367566241,1750859453099,-614.69,0.00018203,2]
[367566242,1750859453108,-2723.74,0.00018203,2]
[367566243,1750859453118,-460.0,0.00018203,2]
[367566244,1750859453127,-1006.43,0.00018203,2]
[367566245,1750859453137,-2411.85,0.00018203,2]
[367566246,1750859453146,-472.79,0.00018203,2]
[367566247,1750859453156,-460.0,0.00018203,2]
[367566248,1750859453166,-973.65,0.00018203,2]
[367566249,1750859453175,-827.29,0.00018203,2]
[367566250,1750859453185,-460.0,0.00018203,2]
[367566251,1750859453194,-2791.25,0.00018203,2]
[367566252,1750859453203,-460.0,0.00018203,2]
[367566253,1750859453214,-1029.61,0.00018203,2]
[367566254,1750859453223,-1709.61,0.00018203,2]
[367566255,1750859453233,-151.0,0.0001821,2]
[367566256,1750859453243,-168.0,0.00018223,2]
[367566257,1750859453253,-369.72993045,0.00018229,2]
[367566258,1750859453262,-460.0,0.00018235,2]
[367566259,1750859453272,-460.0,0.00018235,2]
[367566260,1750859453281,-460.0,0.00018235,2]
[367566261,1750859453291,-2238.12,0.00018235,2]
[367566262,1750859453300,-460.0,0.00018235,2]
[367566263,1750859453309,-375.64573082,0.00018235,2]
[367566264,1750859453743,-460.0,0.00016556,2]
[367566265,1750859453753,-264.78789557,0.00016556,2]
[367566266,1750859453765,-195.21210443,0.00016556,2]
[367566267,1750859453775,-460.0,0.00016557,2]
[367566268,1750859453784,-16.16638432,0.00016557,2]
[367566269,1750859453795,-443.83361568,0.00016557,2]
[367566270,1750859453804,-127.06438445,0.00016557,2]
[367566271,1750859454041,-340.70006358,0.00016557,2]
[367566272,1750859454050,-460.0,0.00016559,2]
[367566273,1750859454060,-460.0,0.00016591,2]
[367566274,1750859454069,-460.0,0.00016592,2]
[367566275,1750859454079,-460.0,0.0001683,2]
[367566276,1750859454089,-460.0,0.00016831,2]
[367566277,1750859454097,-460.0,0.00016833,2]
[367566278,1750859454107,-460.0,0.00016865,2]
[367566279,1750859454116,-460.0,0.00016866,2]
[367566280,1750859454126,-460.0,0.00017105,2]
[367566281,1750859454135,-460.0,0.00017107,2]
[367566282,1750859454145,-460.0,0.00017139,2]
[367566283,1750859454154,-460.0,0.00017379,2]
[367566284,1750859454163,-460.0,0.00017381,2]
[367566285,1750859454173,-460.0,0.00017413,2]
[367566286,1750859454182,-177.4156324,0.00017523,2]
[367566287,1750859454191,-460.0,0.00017653,2]
[367566288,1750859454201,-207.84,0.00017655,2]
[367566289,1750859454210,-460.0,0.00017687,2]
[367566290,1750859454222,-2552.9,0.00017927,2]
[367566291,1750859454232,-460.0,0.00017927,2]
[367566292,1750859454242,-218.78222056,0.00017929,2]
[367566293,1750859454251,-460.0,0.00017961,2]
[367566294,1750859454261,-2552.9,0.00018201,2]
[367566295,1750859454272,-460.0,0.00018201,2]
[367566296,1750859454281,-3493.99426918,0.00018235,2]
[367566297,1750859454290,-1844.03,0.00018235,2]
[367566298,1750859454299,-1809.46,0.00018235,2]
[367566299,1750859454309,-1318.21,0.00018235,2]
[367566300,1750859454318,-460.0,0.00018235,2]
[367566301,1750859454327,-151.0,0.00018236,2]
[367566302,1750859454336,-151.0,0.00018236,2]
[367566303,1750859454345,-15.0561891,0.00018236,2]
[367566304,1750859454357,-613.4238109,0.00018236,2]
[367566305,1750859454366,-605.34,0.00018236,2]
[367566306,1750859454376,-441.38460751,0.00018236,2]
[367566307,1750859454385,-823.66,0.00018236,2]
[367566308,1750859454395,-496.04,0.00018236,2]
[367566309,1750859454404,-512.39,0.00018236,2]
[367566310,1750859454413,-457.09157823,0.00018236,2]
[367566311,1750859454426,-2.90842177,0.00018236,2]
[367566312,1750859454435,-852.82,0.00018236,2]
[367566313,1750859454445,-460.0,0.00018236,2]
[367566314,1750859454455,-460.0,0.00018236,2]
[367566315,1750859454468,-208.849672,0.00018237,2]
[367566316,1750859454478,-151.0,0.00018237,2]
[367566317,1750859454520,-190.983986,0.00018237,2]
[367566318,1750859454530,-190.983986,0.00018237,2]
[367566319,1750859454540,-151.0,0.00018237,2]
[367566320,1750859454550,-161.176879,0.00018237,2]
[367566321,1750859454560,-161.176879,0.00018237,2]
[367566322,1750859454570,-151.0,0.00018237,2]
[367566323,1750859454580,-151.0,0.00018237,2]
[367566324,1750859454589,-151.0,0.00018237,2]
[367566325,1750859454599,-190.536454,0.00018237,2]
[367566326,1750859454608,-921.341914,0.00018237,2]
[367566327,1750859454617,-921.341914,0.00018237,2]
[367566328,1750859454626,-460.0,0.00018237,2]
[367566329,1750859454635,-185.72,0.00018237,2]
[367566330,1750859454644,-151.0,0.00018238,2]
[367566331,1750859454654,-151.0,0.00018238,2]
[367566332,1750859454663,-151.0,0.00018238,2]
[367566333,1750859454673,-321.25546775,0.00018238,2]
[367566334,1750859454686,-151.0,0.00018239,2]
[367566335,1750859454695,-92.17080663,0.00018239,2]
[367566336,1750859454707,-58.82919337,0.00018239,2]
[367566337,1750859454719,-151.0,0.00018239,2]
[367566338,1750859454729,-151.0,0.00018279,2]
[367566339,1750859454738,-151.0,0.000183,2]
[367566340,1750859454747,-159.1939926,0.00018301,2]
[367566341,1750859454758,-168.0,0.00018317,2]
[367566342,1750859454768,-574.8597778,0.00018325,2]
[367566343,1750859454776,-338.4562606,0.00018325,2]
[367566344,1750859454785,-564.87089637,0.00018325,2]
[367566345,1750859454796,-584.84865923,0.00018325,2]
[367566346,1750859454806,-6690.92572186,0.00018348,2]
[367566347,1750859454815,-180.01620146,0.000184,2]
[367566348,1750859454824,-10093.28426925,0.00018473,2]
[367566349,1750859454834,-280.16415812,0.00018473,2]
[367566350,1750859454844,-460.0,0.00018475,2]
[367566351,1750859454853,-460.0,0.00018475,2]
[367566352,1750859454862,-658.25,0.00018475,2]
[367566353,1750859454872,-2157.48,0.00018475,2]
[367566354,1750859454882,-460.0,0.00018475,2]
[367566355,1750859454891,-1596.87,0.00018475,2]
[367566356,1750859454900,-2446.59,0.00018475,2]
[367566357,1750859454909,-998.45,0.00018475,2]
[367566358,1750859454918,-460.0,0.00018475,2]
[367566359,1750859454927,-477.9,0.00018475,2]
[367566360,1750859454936,-1724.12,0.00018475,2]
[367566361,1750859454946,-473.38,0.00018475,2]
[367566362,1750859454955,-1709.54,0.00018475,2]
[367566363,1750859454964,-514.24,0.00018475,2]
[367566364,1750859454979,-460.0,0.00018475,2]
[367566365,1750859454989,-769.26,0.00018475,2]
[367566366,1750859454998,-513.86635749,0.00018475,2]
[367566367,1750859455008,-2314.7,0.00018475,2]
[367566368,1750859455018,-2552.9,0.00018475,2]
[367566369,1750859455027,-21.85871375,0.00018475,2]
[367566370,1750859599799,3000.0,0.00023,30]
[367566373,1750859662682,269.0902228,0.000161,2]
[367566375,1750859682238,152.498324,0.0002208,30]
[367566376,1750859684845,177.514917,0.0002208,30]
[367566378,1750859691644,152.270095,0.00023,30]
[367566392,1750860098651,-460.0,0.00016151,2]
[367566393,1750860142106,1000.0,0.00024,120]
[367566394,1750860143854,1000.0,0.00024,120]
[367566397,1750860289765,152.270095,0.00023,30]
[367566399,1750860321276,163.909859,0.00013699,2]
[367566400,1750860367399,1452.1708716,0.00015524,2]
[367566402,1750860399656,500.0,0.00025492,60]
[367566403,1750860416664,160.0,0.00025492,60]
[367566407,1750860478602,500.0,0.00025492,60]
[367566413,1750860582183,160.0,0.00025493,90]
[367566463,1750860632435,-40.0,0.00016151,2]
[367566465,1750860632444,-500.0,0.00016355,2]
[367566467,1750860632454,-153.32499634,0.00016447,2]
[367566469,1750860632463,-277.29744789,0.00016454,2]
[367566471,1750860632472,-108.27755577,0.00016457,2]
[367566473,1750860632484,-71.04300889,0.00016457,2]
[367566475,1750860632494,-700.0,0.000165,2]
[367566477,1750860632504,-151.0,0.00016545,2]
[367566478,1750860632513,-2655.0,0.00016547,2]
[367566480,1750860632522,-300.0,0.00016548,2]
[367566482,1750860632531,-2176.56,0.00016549,3]
[367566484,1750860632540,-1088.28,0.00016549,3]
[367566486,1750860632549,-544.14,0.00016549,3]
[367566488,1750860632559,-272.07,0.00016549,3]
[367566490,1750860632568,-816.23,0.00016549,3]
[367566492,1750860632578,-460.0,0.00016553,2]
[367566494,1750860632587,-263.61026868,0.00016553,2]
[367566496,1750860632596,-460.0,0.00016553,2]
[367566499,1750860632610,-123.09591311,0.00016553,2]
[367566501,1750860632628,-358.75722486,0.00016553,2]
[367566504,1750860632642,-798.33913055,0.00016553,2]
[367566612,1750860638169,-617.80086945,0.00016553,2]
[367566614,1750860638180,-460.0,0.00016553,2]
[367566616,1750860638190,-382.87495642,0.00016553,2]
[367566617,1750860638203,-1975.15,0.00016553,2]
[367566618,1750860638215,-534.17,0.00016553,2]
[367566621,1750860638227,-460.0,0.00016553,2]
[367566622,1750860638239,-467.34885094,0.00016553,2]
[367566623,1750860638250,-460.0,0.00016554,2]
[367566624,1750860638261,-460.0,0.00016554,2]
[367566625,1750860638272,-460.0,0.00016554,2]
[367566626,1750860638283,-460.0,0.00016554,2]
[367566627,1750860638294,-557.93,0.00016554,2]
[367566628,1750860638305,-460.0,0.00016554,2]
[367566629,1750860638315,-476.59934335,0.00016554,2]
[367566630,1750860638326,-443.19302072,0.00016554,2]
[367566631,1750860638337,-460.0,0.00016554,2]
[367566632,1750860638347,-460.0,0.00016554,2]
[367566633,1750860638358,-1312.31,0.00016554,2]
[367566634,1750860638370,-460.0,0.00016554,2]
[367566635,1750860638381,-460.0,0.00016554,2]
[367566636,1750860638392,-460.0,0.00016554,2]
[367566637,1750860638403,-534.44,0.00016554,2]
[367566638,1750860638414,-1859.35,0.00016554,2]
[367566639,1750860638424,-1453.5,0.00016554,2]
[367566641,1750860638435,-2142.4,0.00016554,2]
[367566642,1750860638446,-460.0,0.00016554,2]
[367566643,1750860638457,-408.91535049,0.00016554,2]
[367566644,1750860638467,-863.84,0.00016554,2]
[367566645,1750860638478,-460.0,0.00016554,2]
[367566646,1750860638492,-460.0,0.00016554,2]
[367566647,1750860638503,-460.0,0.00016554,2]
[367566648,1750860638514,-1386.96,0.00016554,2]
[367566649,1750860638526,-460.0,0.00016554,2]
[367566650,1750860638537,-460.0,0.00016554,2]
[367566651,1750860638548,-460.0,0.00016554,2]
[367566652,1750860638560,-460.0,0.00016554,2]
[367566653,1750860638572,-460.0,0.00016554,2]
[367566654,1750860638583,-676.59,0.00016554,2]
[367566655,1750860638594,-460.0,0.00016554,2]
[367566656,1750860638605,-460.0,0.00016554,2]
[367566657,1750860638616,-500.0,0.00016554,2]
[367566658,1750860638627,-500.0,0.00016554,2]
[367566659,1750860638638,-236.11260814,0.00016554,2]
[367566660,1750860638649,-588.04328086,0.00016554,2]
[367566661,1750860638660,-500.0,0.00016554,2]
[367566662,1750860638671,-500.0,0.00016554,2]
[367566663,1750860638683,-460.0,0.00016555,2]
[367566664,1750860638694,-312.43977963,0.00016555,2]
[367566665,1750860638705,-460.0,0.00016555,2]
[367566666,1750860638716,-460.0,0.00016555,2]
[367566667,1750860638728,-460.0,0.00016555,2]
[367566668,1750860638740,-500.0,0.00016555,2]
[367566669,1750860638751,-500.0,0.00016555,2]
[367566670,1750860638763,-460.0,0.00016555,2]
[367566671,1750860638774,-150.92060805,0.00016555,2]
[367566672,1750860638785,-460.0,0.00016555,2]
[367566673,1750860638796,-460.0,0.00016555,2]
[367566674,1750860638808,-460.0,0.00016555,2]
[367566675,1750860638819,-460.0,0.00016555,2]
[367566676,1750860638830,-460.0,0.00016555,2]
[367566677,1750860638840,-460.0,0.00016555,2]
[367566678,1750860638851,-460.0,0.00016555,2]
[367566679,1750860638862,-460.0,0.00016555,2]
[367566680,1750860638873,-460.0,0.00016555,2]
[367566681,1750860638885,-420.0,0.00016555,2]
[367566682,1750860638896,-460.0,0.00016555,2]
[367566683,1750860638907,-510.28022389,0.00016555,2]
[367566684,1750860638918,-460.0,0.00016555,2]
[367566685,1750860638929,-460.0,0.00016555,2]
[367566686,1750860638940,-460.0,0.00016555,2]
[367566687,1750860638951,-460.0,0.00016555,2]
[367566688,1750860638963,-460.0,0.00016555,2]
[367566689,1750860638974,-587.90688195,0.00016555,2]
[367566690,1750860638985,-307.0423032,0.00016555,2]
[367566691,1750860639000,-460.0,0.00016555,2]
[367566692,1750860639010,-460.0,0.00016555,2]
[367566693,1750860639019,-460.0,0.00016555,2]
[367566694,1750860639028,-460.0,0.00016555,2]
[367566695,1750860639038,-461.13021762,0.00016555,2]
[367566696,1750860639047,-460.0,0.00016555,2]
[367566697,1750860639057,-460.0,0.00016555,2]
[367566698,1750860639067,-215.47469188,0.00016555,2]
[367566699,1750860639077,-460.0,0.00016555,2]
[367566700,1750860639290,-460.0,0.00016555,2]
[367566701,1750860639310,-460.0,0.00016555,2]
[367566702,1750860639319,-460.0,0.00016555,2]
[367566703,1750860639328,-460.0,0.00016555,2]
[367566704,1750860639338,-460.0,0.00016555,2]
[367566705,1750860639346,-460.0,0.00016555,2]
[367566706,1750860639355,-460.0,0.00016555,2]
[367566707,1750860639365,-500.0,0.00016555,2]
[367566708,1750860639374,-500.0,0.00016555,2]
[367566709,1750860639383,-500.0,0.00016555,2]
[367566710,1750860639393,-460.0,0.00016555,2]
[367566711,1750860639402,-460.0,0.00016555,2]
[367566712,1750860639412,-460.0,0.00016555,2]
[367566713,1750860639421,-500.0,0.00016555,2]
[367566714,1750860639431,-460.0,0.00016555,2]
[367566715,1750860639440,-460.0,0.00016555,2]
[367566716,1750860639450,-460.0,0.00016555,2]
[367566717,1750860639459,-460.0,0.00016555,2]
[367566718,1750860639468,-460.0,0.00016555,2]
[367566719,1750860639477,-460.0,0.00016555,2]
[367566720,1750860639488,-471.95973567,0.00016555,2]
[367566721,1750860639497,-460.0,0.00016555,2]
[367566722,1750860639506,-460.0,0.00016555,2]
[367566723,1750860639516,-460.0,0.00016555,2]
[367566724,1750860639525,-460.0,0.00016555,2]
[367566725,1750860639534,-460.0,0.00016555,2]
[367566726,1750860639544,-460.0,0.00016555,2]
[367566727,1750860639552,-460.0,0.00016555,2]
[367566728,1750860639562,-460.0,0.00016555,2]
[367566729,1750860639571,-460.0,0.00016555,2]
[367566730,1750860639580,-460.0,0.00016555,2]
[367566731,1750860639589,-522.02,0.00016555,2]
[367566732,1750860639598,-460.0,0.00016555,2]
[367566733,1750860639608,-460.0,0.00016555,2]
[367566734,1750860639617,-169.34165452,0.00016555,2]
[367566736,1750860639627,-460.0,0.00016555,2]
[367566737,1750860639636,-460.0,0.00016555,2]
[367566738,1750860639646,-460.0,0.00016555,2]
[367566739,1750860639655,-460.0,0.00016555,2]
[367566740,1750860639664,-460.0,0.00016555,2]
[367566741,1750860639673,-460.0,0.00016555,2]
[367566742,1750860639682,-506.206222,0.00016555,2]
[367566743,1750860639691,-515.70110415,0.00016555,2]
[367566744,1750860639700,-460.0,0.00016555,2]
[367566745,1750860639709,-460.0,0.00016555,2]
[367566746,1750860639719,-460.0,0.00016555,2]
[367566747,1750860639729,-460.0,0.00016555,2]
[367566748,1750860639739,-980.95,0.00016555,2]
[367566749,1750860639748,-460.0,0.00016555,2]
[367566750,1750860639757,-460.0,0.00016555,2]
[367566751,1750860639766,-460.0,0.00016555,2]
[367566752,1750860639776,-461.46956662,0.00016555,2]
[367566753,1750860639785,-460.0,0.00016555,2]
[367566754,1750860639795,-528.51,0.00016555,2]
[367566755,1750860639804,-460.0,0.00016555,2]
[367566756,1750860639813,-460.0,0.00016555,2]
[367566757,1750860639823,-1909.38,0.00016555,2]
[367566758,1750860639832,-460.0,0.00016555,2]
[367566759,1750860639841,-722.87,0.00016555,2]
[367566760,1750860639850,-460.0,0.00016555,2]
[367566761,1750860639859,-460.0,0.00016555,2]
[367566762,1750860639869,-460.0,0.00016555,2]
[367566763,1750860639878,-460.0,0.00016555,2]
[367566764,1750860639888,-460.0,0.00016555,2]
[367566765,1750860639897,-460.0,0.00016555,2]
[367566766,1750860639906,-460.0,0.00016555,2]
[367566767,1750860639916,-460.0,0.00016555,2]
[367566768,1750860639925,-585.42,0.00016555,2]
[367566769,1750860639935,-460.0,0.00016555,2]
[367566770,1750860639945,-460.0,0.00016555,2]
[367566771,1750860639954,-460.0,0.00016555,2]
[367566772,1750860639963,-460.0,0.00016555,2]
[367566773,1750860639972,-460.0,0.00016555,2]
[367566774,1750860639982,-460.0,0.00016555,2]
[367566775,1750860639994,-460.0,0.00016555,2]
[367566776,1750860640003,-520.52915081,0.00016555,2]
[367566777,1750860640012,-460.0,0.00016555,2]
[367566778,1750860640022,-460.0,0.00016555,2]
[367566779,1750860640031,-460.0,0.00016555,2]
[367566780,1750860640040,-460.0,0.00016555,2]
[367566781,1750860640049,-460.0,0.00016555,2]
[367566783,1750860640059,-460.0,0.00016555,2]
[367566785,1750860640068,-460.0,0.00016555,2]
[367566787,1750860640077,-460.0,0.00016555,2]
[367566789,1750860640087,-930.67,0.00016555,2]
[367566790,1750860640096,-773.6,0.00016555,2]
[367566792,1750860640105,-460.0,0.00016555,2]
[367566793,1750860640114,-544.92909081,0.00016556,2]
[367566794,1750860640123,-460.0,0.00016556,2]
[367566795,1750860640135,-460.0,0.00016556,2]
[367566798,1750860640145,-460.0,0.00016556,2]
[367566799,1750860640154,-460.0,0.00016556,2]
[367566801,1750860640162,-460.0,0.00016556,2]
[367566803,1750860640172,-430.0,0.00016556,2]
[367566806,1750860640181,-249.69076425,0.00016556,2]
[367566807,1750860640190,-460.0,0.00016556,2]
[367566809,1750860640200,-460.0,0.00016556,2]
[367566812,1750860640213,-367.42878218,0.00016556,2]
[367566813,1750860640222,-481.18,0.00016556,2]
[367566815,1750860640231,-460.0,0.00016556,2]
[367566817,1750860640241,-460.0,0.00016556,2]
[367566819,1750860640250,-460.0,0.00016556,2]
[367566820,1750860640260,-460.0,0.00016556,2]
[367566822,1750860640269,-460.0,0.00016556,2]
[367566824,1750860640278,-460.0,0.00016556,2]
[367566826,1750860640288,-460.0,0.00016556,2]
[367566828,1750860640298,-500.0,0.00016556,2]
[367566830,1750860640307,-492.76,0.00016556,2]
[367566831,1750860640316,-460.0,0.00016556,2]
[367566833,1750860640325,-460.0,0.00016556,2]
[367566834,1750860640334,-1278.04,0.00016556,2]
[367566835,1750860640344,-460.0,0.00016556,2]
[367566836,1750860640353,-845.48,0.00016556,2]
[367566837,1750860640363,-460.0,0.00016556,2]
[367566838,1750860640373,-460.0,0.00016556,2]
[367566839,1750860640382,-460.0,0.00016556,2]
[367566840,1750860640392,-498.28772256,0.00016556,2]
[367566841,1750860640401,-500.0,0.00016556,2]
[367566842,1750860640410,-460.0,0.00016556,2]
[367566843,1750860640419,-460.0,0.00016556,2]
[367566844,1750860640429,-460.0,0.00016556,2]
[367566845,1750860640438,-460.0,0.00016556,2]
[367566846,1750860640450,-460.0,0.00016556,2]
[367566847,1750860640460,-460.0,0.00016556,2]
[367566848,1750860640469,-5679.87,0.00016556,2]
[367566849,1750860640478,-460.0,0.00016556,2]
[367566850,1750860640487,-460.0,0.00016556,2]
[367566851,1750860640497,-737.8,0.00016556,2]
[367566852,1750860640506,-748.28,0.00016556,2]
[367566853,1750860640515,-460.0,0.00016556,2]